[Event "German-ch Blitz Women 2022"]
[Site "Magdeburg"]
[Date "2022.08.13"]
[Round "10.6"]
[White "Skibbe, Diana"]
[Black "Stärk, Elisa"]
[Result "0-1"]
[ECO "B74"]
[WhiteElo "1943"]
[BlackElo "1950"]
[Annotator "TA"]
[PlyCount "124"]
[EventDate "2022.08.10"]
[EventType "tourn"]
[EventCountry "GER"]
[SourceTitle "playchess.com"]
[Source "ChessBase"]
[SourceQuality "1"]
[TimeControl "180+2"]

{[%evp 19,124,0,0,-101,-107,-113,-109,-250,-133,-131,-125,-232,-80,-94,-91,-87,-72,-78,-66,-79,-45,-106,-118,-110,-103,-108,-118,-136,-131,-139,-134,-140,-137,-137,-125,-151,-134,-147,5,0,0,0,18,0,88,82,93,79,118,-50,0,-130,-32,-133,0,-35,-35,-92,-104,-118,-124,-120,-118,-189,-152,-463,-134,-252,-233,-639,-624,-566,-551,-919,-699,-1313,-1409,-1415,-1250,-1005,-1318,-29974,-29975,-29975,-29976,-29978,-29979,-29980,-29981,-29982,-29983,-29982,-29982,-29984,-29985,-29985,-29986,-29986,-29987,-29988,-29989,-29989,-29990,-29995,-29996,-29998,-29999]} 1. e4 g6 2. d4 Bg7 3. Nc3 c5 4. Nf3 cxd4 5. Nxd4 Nc6 6. Nb3 Nf6 7. Be2 O-O 8. O-O d6 9. Be3 a6 10. a4 Be6 11. Nd5 {B74: Sicilian Dragon: Classical System with 9 Nb3.} (11. a5 $11) 11... Nxe4 $17 {[#]} 12. Bb6 $146 ({Predecessor:} 12. Nb6 Rb8 13. f3 Nf6 14. a5 Nd7 15. Qd2 Bxb2 16. Ra4 Bf6 17. Rd1 Nxb6 18. Bxb6 Qc8 {1-0 (40) Van den Berg,H-Van Kerkhof,D Nijmegen 2002}) 12... Qd7 13. Nc7 (13. c3 $17) 13... Rac8 (13... Bxb2 $19 14. Nxa8 Rxa8) 14. Nxe6 Qxe6 15. c3 {[#]} (15. Nd4 $17 Qd5 16. c3) 15... Nf6 $2 {Pair of Knights!} (15... Bxc3 $1 $19 {[%mdl 512]} 16. f3 (16. bxc3 $2 Nxc3 17. Bg4 f5 $19) 16... Bxb2 17. fxe4 Bxa1 18. Nxa1 Qxe4) 16. Nd4 Nxd4 17. Bxd4 Qd7 18. Bf3 e5 {[%cal Be7e5,Be5e4][%mdl 32]} 19. Bb6 d5 20. Re1 (20. Qb3 $15) 20... e4 21. Be2 Qc6 $36 {[%mdl 2048] White is under strong pressure.} 22. Bd4 Rfd8 23. Bf1 Nd7 {[%cal Bf6d7,Bd7f8,Bf8e6,Be6c5,Bc5a4][%mdl 32]} 24. Bxg7 Kxg7 25. Qd4+ Kg8 26. Rad1 Nf8 27. g3 Ne6 28. Qe5 Qd6 $2 ({Don't play} 28... Qxa4 $6 29. Rxd5 Qc6 30. Rxd8+ Rxd8 31. Qxe4 $11) (28... f5 $17 {aiming for ...Kf7.} 29. Kg2 Kf7) 29. Qxd6 Rxd6 30. Rxe4 $1 Nc5 31. Red4 Rcd8 (31... Rb6 $11) 32. Bg2 a5 33. Bxd5 Kf8 {[%cal Oc5a4]} 34. c4 $2 (34. b3 $1 $16) 34... Nxa4 (34... Rb6 $15) 35. R4d2 (35. Rf4 $11 {keeps the balance.} R6d7 36. Ra1) 35... Nc5 (35... b5 $1 $17 {[%cal Rb5c4]} 36. Ra1 (36. cxb5 $2 Nb6 $19) 36... Nb6) 36. Kg2 {[#]} (36. Kf1 $15) 36... b6 (36... b5 $1 $17 {[%cal Rb5c4] Threatens to win with ...bxc4.} 37. cxb5 Na4) 37. Rd4 Na6 38. R1d3 ({White should play} 38. R4d2 $15) 38... Nb4 {White is on the road to losing.} 39. Rf3 Nxd5 40. cxd5 Rxd5 41. Rxd5 (41. Rdf4 $17 {was worth a try.} R8d7 42. Rf6) 41... Rxd5 {[%mdl 4096] Endgame KR-KR} 42. Rf6 $2 (42. Re3 $17 {is a better chance.}) 42... b5 $2 (42... Rb5 $19 {and Black stays clearly on top.} 43. Rd6 Rxb2 44. Rd8+ Ke7) 43. Ra6 {[#]} (43. Rb6 $17 {keeps fighting.}) 43... a4 $1 $19 {Hoping for ...Rd4.} 44. Kf3 $2 (44. Rb6) 44... Rd2 45. Ke3 Rxb2 46. f4 Rxh2 47. Kd4 Rg2 48. Ke5 Kg7 49. Rb6 Rb2 {( -> ...a3)} 50. g4 a3 {Black mates.} 51. Ra6 b4 {[%cal Bb5b4,Bb4b3][%mdl 32]} 52. f5 gxf5 53. gxf5 f6+ 54. Ke6 a2 55. Ra7+ Kh6 56. Kxf6 b3 57. Ra4 Rh2 58. Ke7 Rh1 59. f6 Re1+ 60. Kf7 a1=Q 61. Rh4+ Kg5 62. Rxh7 Qxf6+ {Weighted Error Value: White=0.86/Black=0.41} 0-1

[Event "German-ch Blitz Women 2022"]
[Site "Magdeburg"]
[Date "2022.08.13"]
[Round "10.7"]
[White "Rath, Alina"]
[Black "Zschischang, Marine"]
[Result "1-0"]
[ECO "D31"]
[WhiteElo "2062"]
[BlackElo "2083"]
[Annotator "NA RC"]
[PlyCount "139"]
[EventDate "2022.08.10"]
[EventType "tourn"]
[EventCountry "GER"]
[SourceTitle "playchess.com"]
[Source "ChessBase"]
[SourceQuality "1"]
[TimeControl "180+2"]

1. c4 {[%emt 0:00:01]} e6 {[%emt 0:00:01]} 2. Nc3 {[%emt 0:00:01]} d5 {[%emt 0:00:00]} 3. d4 {[%emt 0:00:01]} c6 {[%emt 0:00:02]} 4. e3 {[%emt 0:00:01]} Bd6 {[%emt 0:00:01]} 5. f4 {[%emt 0:00:01]} Nd7 {[%emt 0:00:04]} 6. Nf3 {[%emt 0:00:01]} f5 {[%emt 0:00:01]} 7. Bd3 {[%emt 0:00:04]} Ngf6 {[%emt 0:00:01]} 8. O-O {[%emt 0:00:01]} O-O {[%emt 0:00:01]} 9. b3 {[%emt 0:00:01]} Ne4 {[%emt 0:00:03]} 10. Bd2 {[%emt 0:00:08]} Qf6 {[%emt 0:00:06]} 11. Ne5 {[%emt 0:00:07]} Qh6 {[%emt 0:00:08]} 12. Rf3 {[%emt 0:00:02]} Bxe5 {[%emt 0:00:16]} 13. dxe5 {[%emt 0:00:03]} Ndc5 {[%emt 0:00:15]} 14. Bf1 {[%emt 0:00:03]} Nxc3 {[%emt 0:00:06]} 15. Bxc3 {[%emt 0:00:02]} Ne4 {[%emt 0:00:02]} 16. Be1 {[%emt 0:00:02]} Bd7 {[%emt 0:00:09]} 17. Rh3 {[%emt 0:00:01]} Qg6 {[%emt 0:00:02]} 18. Be2 {[%emt 0:00:06]} Qe8 {[%emt 0:00:04]} 19. Rc1 {[%emt 0:00:07]} Qe7 {[%emt 0:00:03]} 20. Bf1 {[%emt 0:00:04]} Be8 {[%emt 0:00:13]} 21. cxd5 {[%emt 0:00:10]} exd5 {[%emt 0:00:12]} 22. Bh4 {[%emt 0:00:02]} Qe6 {[%emt 0:00:20]} 23. Bd3 {[%emt 0:00:04]} Bg6 {[%emt 0:00:14]} 24. Be1 {[%emt 0:00:02]} Rfd8 {[%emt 0:00:07]} 25. Bf1 {[%emt 0:00:05]} Rac8 {[%emt 0:00:06]} 26. b4 {[%emt 0:00:02]} Qe7 {[%emt 0:00:21]} 27. Qb3 {[%emt 0:00:02]} Bf7 {[%emt 0:00:01]} 28. Qb2 {[%emt 0:00:02]} b6 {[%emt 0:00:05]} 29. Bh4 {[%emt 0:00:03]} g5 {[%emt 0:00:20]} 30. fxg5 {[%emt 0:00:25]} Nxg5 {[%emt 0:00:01]} 31. Rg3 {[%emt 0:00:12]} h6 {[%emt 0:00:01]} 32. Qd4 {[%emt 0:00:12]} Kh7 {[%emt 0:00:10]} 33. Qf4 {[%emt 0:00:03]} Bg6 {[%emt 0:00:06]} 34. Bxg5 {[%emt 0:00:01]} hxg5 {[%emt 0:00:01]} 35. Rxg5 {[%emt 0:00:02]} Re8 {[%emt 0:00:08]} 36. Qh4+ {[%emt 0:00:09]} Kg7 {[%emt 0:00:00]} 37. Qg3 {[%emt 0:00:01]} Qe6 {[%emt 0:00:07]} 38. Bd3 {[%emt 0:00:03]} Kf7 {[%emt 0:00:06]} 39. Rf1 {[%emt 0:00:07]} Qxe5 {[%emt 0:00:09]} 40. Qxe5 {[%emt 0:00:01]} Rxe5 {[%emt 0:00:00]} 41. Bxf5 {[%emt 0:00:10]} Bxf5 {[%emt 0:00:02]} 42. Rgxf5+ {[%emt 0:00:01]} Rxf5 {[%emt 0:00:02]} 43. Rxf5+ {[%emt 0:00:00]} Kg6 {[%emt 0:00:01]} 44. Rf4 {[%emt 0:00:02]} Re8 {[%emt 0:00:00]} 45. Kf2 {[%emt 0:00:01]} Kg5 {[%emt 0:00:02]} 46. h4+ {[%emt 0:00:01]} Kg6 {[%emt 0:00:01]} 47. g4 {[%emt 0:00:01]} Rh8 {[%emt 0:00:02]} 48. Kg3 {[%emt 0:00:01]} a5 {[%emt 0:00:01]} 49. h5+ {[%emt 0:00:01]} Kg7 {[%emt 0:00:01]} 50. Kh4 {[%emt 0:00:02]} axb4 {[%emt 0:00:01]} 51. Rxb4 {[%emt 0:00:00]} b5 {[%emt 0:00:00]} 52. g5 {[%emt 0:00:02]} Re8 {[%emt 0:00:02]} 53. h6+ {[%emt 0:00:04]} Kg6 {[%emt 0:00:01]} 54. Rf4 {[%emt 0:00:02]} Rxe3 {[%emt 0:00:01]} 55. Rf6+ {[%emt 0:00:01]} Kh7 {[%emt 0:00:00]} 56. Rf7+ {[%emt 0:00:02]} Kh8 {[%emt 0:00:02]} 57. Kh5 {[%emt 0:00:02]} Re6 {[%emt 0:00:07]} 58. g6 {[%emt 0:00:05]} Re5+ {[%emt 0:00:07]} 59. Kg4 {[%emt 0:00:02]} Re8 {[%emt 0:00:01]} 60. Rc7 {[%emt 0:00:05]} d4 {[%emt 0:00:05]} 61. Rxc6 Rd8 {[%emt 0:00:01]} 62. Rc2 {[%emt 0:00:08]} d3 {[%emt 0:00:01]} 63. Rd2 {[%emt 0:00:01]} Rd6 {[%emt 0:00:05]} 64. Kf5 {[%emt 0:00:01]} Kg8 {[%emt 0:00:03]} 65. a3 {[%emt 0:00:12]} Rd5+ {[%emt 0:00:05]} 66. Ke6 {[%emt 0:00:03]} Rg5 {[%emt 0:00:04]} 67. Kf6 {[%emt 0:00:03]} Rd5 {[%emt 0:00:01]} 68. h7+ {[%emt 0:00:35]} Kh8 {[%emt 0:00:01]} 69. g7+ {[%emt 0:00:01]} Kxh7 {[%emt 0:00:01]} 70. Rh2+ {[%emt 0:00:02]} 1-0

[Event "German-ch Blitz Women 2022"]
[Site "Magdeburg"]
[Date "2022.08.13"]
[Round "10.8"]
[White "Kunze, Kerstin"]
[Black "Schuster, Rebekka"]
[Result "0-1"]
[ECO "C11"]
[WhiteElo "2020"]
[BlackElo "1815"]
[Annotator "TA"]
[PlyCount "113"]
[EventDate "2022.08.10"]
[EventType "tourn"]
[EventCountry "GER"]
[SourceTitle "playchess.com"]
[Source "ChessBase"]
[SourceQuality "1"]
[TimeControl "180+2"]

{[%evp 13,113,-5,-10,-6,33,25,39,27,40,0,0,0,39,16,10,-22,-55,-200,0,0,0,0,0,0,0,-66,-50,-157,-157,-699,-266,-258,-267,-274,-272,-265,-250,-401,-276,-346,-227,-232,-230,-295,-216,-267,-270,-290,-289,-287,27,27,37,-109,-105,-123,-52,-442,-432,-590,-560,-565,-549,-589,-513,-556,-545,-549,-548,-29986,-506,-622,-566,-548,-550,-542,-518,-29999,2305,-372,0,-454,-441,-550,-456,-627,-629,-1000,-991,-5147,-5016,-29968,-29968,-29979,-29969,-29989,-78,-78,-47,-47,1210,1274]} 1. e4 {[%emt 0:00:01]} e6 {[%emt 0:00:00]} 2. d4 {[%emt 0:00:01]} d5 {[%emt 0:00:01]} 3. Nc3 {[%emt 0:00:01]} Nf6 {[%emt 0:00:01]} 4. exd5 {[%emt 0:00:05]} exd5 {[%emt 0:00:01]} 5. Bd3 {[%emt 0:00:03]} Bd6 {[%emt 0:00:02]} 6. Nge2 {[%emt 0:00:18][%cal Bg1e2,Be2g3,Bg3f5][%mdl 32]} c6 {[%emt 0:00:02]} 7. Bg5 {[%emt 0:00:05]} O-O {[%emt 0:00:07]} 8. Qd2 {[%emt 0:00:08] C01: French: Exchange Variation.} Bg4 {[%emt 0:00:08]} 9. f3 {[%emt 0:00:20]} Bh5 {[%emt 0:00:02]} 10. O-O-O {[%emt 0:00:02] White is slightly better.} Nbd7 {[%emt 0:00:01]} 11. Ng3 {[%emt 0:00:08]} Bg6 {[%emt 0:00:03]} 12. Nf5 {[%emt 0:00:09] [#]} Bc7 $146 {[%emt 0:00:14]} ({Predecessor:} 12... Bxf5 13. Bxf5 Qc7 14. Kb1 Rfe8 15. g4 Re7 16. Bxd7 Qxd7 17. Bxf6 gxf6 18. Ne2 Qc7 19. Ng3 Bf4 20. Qd3 Rae8 21. Nh5 Re6 22. Qf5 Bxh2 23. f4 {1-0 (23) Sarenac,D (2374)-Nikolic,Z (2026) Belgrade 2017}) 13. h4 {[%emt 0:00:12]} h6 {[%emt 0:00:09]} 14. Bxh6 {[%emt 0:00:23]} gxh6 {[%emt 0:00:17]} 15. Qxh6 {[%emt 0:00:01]} (15. Nxh6+ $15 Kh7 16. Nf5) 15... Bxf5 $2 {[%emt 0:00:06]} (15... Nh5 $19 16. Ne2 Qf6) 16. Bxf5 $11 {[%emt 0:00:05]} Re8 {[%emt 0:00:49]} 17. h5 {[%emt 0:00:11]} Qe7 {[%emt 0:00:10]} 18. Qg5+ {[%emt 0:00:30]} Kh8 {[%emt 0:00:01]} 19. Rde1 {[%emt 0:00:17] Inhibits Qe3+.} (19. Qh6+ $11 Kg8 20. Qg5+ Kh8 21. Qh6+ Kg8) 19... Qf8 $1 $15 {[%emt 0:00:01]} ({Much weaker is} 19... Qxe1+ 20. Rxe1 Rxe1+ 21. Kd2 $11) 20. h6 {[%emt 0:00:30] Inhibits Qg7.} ({White should try} 20. g4 $15) 20... Qg8 $17 {[%emt 0:00:01]} 21. Qh4 {[%emt 0:00:03]} (21. Qxg8+ $17 Kxg8 22. Kd1) 21... Bg3 $2 {[%emt 0:00:27]} (21... Rxe1+ 22. Qxe1 Qg5+ 23. Kb1 Qxf5) 22. Rxe8 $19 {[%emt 0:00:05]} Rxe8 {[%emt 0:00:02] Really sharp!} 23. Qh3 {[%emt 0:00:00]} Qg5+ {[%emt 0:00:02]} 24. Kb1 {[%emt 0:00:07]} Nf8 {[%emt 0:00:02]} 25. Nd1 $2 {[%emt 0:00:04]} (25. Bd3 {keeps fighting.}) 25... N8h7 {[%emt 0:00:03]} 26. Rf1 {[%emt 0:00:01]} Qh4 {[%emt 0:00:06]} 27. Qxh4 {[%emt 0:00:01]} Bxh4 {[%emt 0:00:00]} 28. a3 Bg5 {[%emt 0:00:01]} 29. Nf2 {[%emt 0:00:02]} Be3 {[%emt 0:00:02]} 30. Nh3 {[%emt 0:00:01]} Bxh6 {[%emt 0:00:04]} 31. Rh1 {[%emt 0:00:01]} Bg7 $2 {[%emt 0:00:00]} (31... Nh5 $19 {White must now prevent ...Ng3.} 32. Rh2 Kg7) 32. Ng5 $1 $11 {[%emt 0:00:01]} Kg8 {[%emt 0:00:03]} 33. Bxh7+ {[%emt 0:00:01]} (33. Nxh7 $14 {was forced to keep a grip.} Nxh7 34. Bxh7+ Kf8 35. c3) 33... Nxh7 $17 {[%emt 0:00:01]} 34. Nxh7 $14 {[%emt 0:00:01][%mdl 4096] Endgame KRB-KRN} ({Don't blunder} 34. Rxh7 $2 f6 35. Rh5 fxg5 36. Rxg5 Kf7 $19) 34... Re3 {[%emt 0:00:04]} (34... Bxd4 $17 35. c3 Bg7) 35. Rf1 $2 {[%emt 0:00:00][%mdl 8192]} Kxh7 $19 {[%emt 0:00:02] KRB-KR} 36. f4 {[%emt 0:00:01]} Kg6 {[%emt 0:00:01]} 37. c3 {[%emt 0:00:02]} f6 {[%emt 0:00:04]} 38. Rf2 {[%emt 0:00:01]} Re4 {[%emt 0:00:01]} 39. Kc2 {[%emt 0:00:01]} Bh6 {[%emt 0:00:01]} 40. f5+ {[%emt 0:00:02]} Kg5 {[%emt 0:00:01]} 41. Re2 {[%emt 0:00:00]} Rf4 {[%emt 0:00:01]} (41... Rxe2+ $142 42. Kb3 Rxg2 43. c4 Kxf5 44. cxd5 cxd5 45. a4 Ke4 46. Kc3 Be3 47. Kb4 Rxb2+ 48. Ka3 Bxd4 49. a5 Kd3 50. Ka4 Bc5 51. a6 bxa6 52. Ka5 Ra2#) 42. Re7 {[%emt 0:00:00]} Rxf5 {[%emt 0:00:02] Threatens to win with ...Rf2+.} 43. Rxb7 {[%emt 0:00:01]} Rf2+ {[%emt 0:00:01]} 44. Kd3 {[%emt 0:00:03]} Kf5 {[%csl Gh6][%cal Rf2d2]} 45. b4 {[%emt 0:00:01] [#]} (45. c4 $19 Rxg2 46. cxd5 cxd5 47. Rxa7) 45... Rf3+ $4 {[%emt 0:00:05][%mdl 8192]} 46. Kc2 $4 {[%emt 0:00:01][%mdl 8192]} (46. gxf3 $18 {was the only winning move.} a6 47. Rb6) 46... Rf2+ $2 {[%emt 0:00:01]} (46... Rg3 $19 47. Rc7 Rxg2+ 48. Kb3 Bc1 49. Rxc6 Rb2+ 50. Ka4 Bd2) 47. Kb3 $2 {[%emt 0:00:01][%mdl 8192]} (47. Kd3 $1 $11 {and White stays safe.} Rd2#) 47... Ke4 {[%emt 0:00:02]} 48. Rxa7 {[%emt 0:00:01]} f5 {[%emt 0:00:01][%cal Bf6f5,Bf5f4,Bf4f3][%mdl 32]} 49. Rh7 {[%emt 0:00:01]} Bd2 {[%emt 0:00:01]} 50. Re7+ {[%emt 0:00:02]} Kd3 {[%emt 0:00:04]} 51. a4 {[%emt 0:00:01]} f4 {[%emt 0:00:01] [#] ( -> ...Bc1)} 52. a5 {[%emt 0:00:01]} f3 {[%emt 0:00:02]} 53. Rf7 {[%emt 0:00:02]} Rf1 {[%emt 0:00:00]} 54. a6 {[%emt 0:00:02]} Ra1 $2 {[%emt 0:00:02]} (54... fxg2 {mates} 55. Rg7 g1=Q 56. Rxg1 Rxg1 57. Ka4 Bxc3 58. a7 Ra1+ 59. Kb3 Rxa7 60. b5 Ra1 61. b6 Rb1+ 62. Ka3 Kc4 63. Ka4 Ra1#) 55. Rxf3+ $17 {[%emt 0:00:01]} Ke2 {[%emt 0:00:01] Black is more active.} (55... Be3 $5 {[%cal Ra1a6]} 56. b5 cxb5 $15) 56. Rf6 {[%emt 0:00:02]} Bh6 $2 {[%emt 0:00:01][%mdl 8192]} 57. Rxh6 {[%mdl 32768] What a bad dream for Black.  Weighted Error Value: White=1.00/Black=0.59. Loss on time!?} 0-1

[Event "German-ch Blitz Women 2022"]
[Site "Magdeburg"]
[Date "2022.08.13"]
[Round "10.10"]
[White "Wulf, Constanze"]
[Black "Heil, Marina"]
[Result "1-0"]
[ECO "A04"]
[WhiteElo "1835"]
[BlackElo "1926"]
[Annotator "TA"]
[PlyCount "97"]
[EventDate "2022.08.10"]
[EventType "tourn"]
[EventCountry "GER"]
[SourceTitle "playchess.com"]
[Source "ChessBase"]
[SourceQuality "1"]
[TimeControl "180+2"]

{[%evp 9,97,23,59,37,45,31,60,44,75,74,90,41,45,59,120,127,120,12,53,20,70,48,175,61,105,93,126,0,65,21,25,-15,85,70,54,0,-7,-11,18,3,52,-23,54,43,40,50,114,60,92,81,88,69,91,37,61,0,144,146,154,158,259,158,696,686,700,610,630,249,781,764,3096,764,2897,761,1791,1701,1752,338,337,329,369,335,833,206,531,472,406,20,181,-8]} 1. Nf3 {[%emt 0:00:01]} f5 {[%emt 0:00:01]} 2. b3 {[%emt 0:00:02]} Nf6 {[%emt 0:00:02]} 3. Bb2 {[%emt 0:00:01]} d6 {[%emt 0:00:00]} 4. d4 {[%emt 0:00:11]} e6 {[%emt 0:00:01]} 5. e3 {[%emt 0:00:02]} Be7 {[%emt 0:00:02]} 6. c4 {[%emt 0:00:03] A80: Dutch Defence: Unusual White second moves.} O-O {[%emt 0:00:03]} 7. Nc3 {[%emt 0:00:02]} a6 {[%emt 0:00:05]} 8. Bd3 {[%emt 0:00:07] White is slightly better.} Qe8 {[%emt 0:00:05]} 9. O-O {[%emt 0:00:06] [#]} Qh5 $146 {[%emt 0:00:12]} ({Predecessor:} 9... Nc6 10. a3 e5 {½-½ (10) Blaga,M (2031)-Pavic,J (2125) Croatia 2016}) 10. Qe2 {[%emt 0:00:32]} (10. e4 $16) 10... Nc6 $14 {[%emt 0:00:08]} 11. Rad1 {[%emt 0:00:07]} e5 {[%emt 0:00:24]} (11... Bd7 $14) 12. dxe5 $1 $16 {[%emt 0:00:21]} dxe5 {[%emt 0:00:01] [#]} 13. Ne1 {[%emt 0:00:17]} ({Better is} 13. Nxe5 $1 $16 {[%mdl 512]} Nxe5 14. Nd5) 13... Qh6 {[%emt 0:00:12]} ({Much less strong is} 13... Ng4 14. h3 e4 15. hxg4 $16) 14. Nd5 $1 {[%emt 0:00:24]} Bd8 {[%emt 0:00:14]} (14... Bd6 $11 15. c5 Bxc5) 15. Bb1 $14 {[%emt 0:00:12]} Ne4 {[%emt 0:00:36]} (15... Re8 $14) 16. Nf3 {[%emt 0:00:03]} (16. Nd3 $18) 16... Qe6 {[%emt 0:00:18]} 17. Nd2 {[%emt 0:00:14]} Ng5 {[%emt 0:00:09]} 18. Nf3 {[%emt 0:00:11]} (18. Rde1 $16) 18... Nf7 {[%emt 0:00:13]} (18... Ne4 $1 $11) 19. e4 {[%emt 0:00:09] 0x0.001450102443dp-1022s more active pieces. The black rooks are badly placed.} f4 {[%emt 0:00:01]} 20. Rd2 {[%emt 0:00:15]} Ne7 {[%emt 0:00:04]} (20... Qh6 $11) 21. Rfd1 {[%emt 0:00:02]} (21. Nxe5 {keeps more tension.} Nxe5 22. Nxf4 Rxf4 23. Rxd8+ Rf8 24. Rxf8+ Kxf8 25. f4) 21... Ng6 {[%emt 0:00:05]} 22. Ne1 {[%emt 0:00:16]} (22. c5 $14) 22... c6 $11 {[%emt 0:00:01]} 23. Nc3 {[%emt 0:00:02]} Bb6 {[%emt 0:00:03]} 24. Na4 {[%emt 0:00:04]} Bc7 {[%emt 0:00:05]} (24... Ba5 $11) 25. Nc5 {[%emt 0:00:01]} (25. c5 $14) 25... Qf6 {[%emt 0:00:04]} (25... Qe7 $11 26. Ncd3 Ng5) 26. Nd7 $14 {[%emt 0:00:01]} Bxd7 {[%emt 0:00:07]} 27. Rxd7 {[%emt 0:00:01]} Rac8 {[%emt 0:00:08]} (27... Rfc8 $1 $14) 28. Nf3 {[%emt 0:00:01]} (28. c5 $16) 28... Rfd8 {[%emt 0:00:08]} 29. Rxd8+ {[%emt 0:00:02]} Rxd8 {[%emt 0:00:01]} 30. Rxd8+ {[%emt 0:00:01]} Qxd8 {[%emt 0:00:01]} 31. Qd3 {[%emt 0:00:01]} ({White should try} 31. b4 $16) 31... Qe7 {[%emt 0:00:03]} 32. Bc2 {[%emt 0:00:03]} ({White should play} 32. a3 $14) 32... Nd6 {[%emt 0:00:06]} (32... a5 $11 {remains equal.}) 33. c5 {[%emt 0:00:03]} Nb5 {[%emt 0:00:02]} 34. b4 {[%emt 0:00:01] And now Bb3+ would win.} h6 {[%emt 0:00:05]} (34... Kf8 $16 35. Bb3 Ke8) 35. h3 {[%emt 0:00:01]} Nf8 $2 {[%emt 0:00:09]} (35... Nd4 $16 36. Bxd4 (36. Nxd4 exd4 37. Qxd4 Be5 $16) 36... exd4 37. Bb3+ (37. Nxd4 Ne5 $18) (37. Qxd4 Ne5 $16) 37... Kh8 38. Nxd4 Qd8) 36. Bb3+ $18 {[%emt 0:00:01] A strong pair of Bishops.} Kh7 {[%emt 0:00:02]} 37. a4 {[%emt 0:00:04]} Na7 {[%emt 0:00:04]} 38. Kf1 $2 {[%emt 0:00:05]} (38. Qc4 {White wants to mate with Qg8+.} Kg6 39. g3) 38... Nc8 $2 {[%emt 0:00:02]} (38... Nd7 39. Qc4 Nf6) 39. Qc4 {[%emt 0:00:03]} Qf6 {[%emt 0:00:04]} 40. Qg8+ {[%emt 0:00:02]} Kg6 {[%emt 0:00:01] [#]} 41. h4 {[%emt 0:00:04]} (41. Bxe5 $142 $1 {[%mdl 512]} Bxe5 {[#]} 42. Bf7+ $1 {[%mdl 512]} Qxf7 43. Nxe5+ Kf6 44. Nxf7) 41... Ne7 {[%emt 0:00:02]} 42. h5+ {[%emt 0:00:04]} Kxh5 {[%emt 0:00:01]} 43. Qf7+ $2 {[%emt 0:00:01]} (43. Bf7+ Nfg6 44. Qe8) 43... Qxf7 {[%emt 0:00:08]} 44. Bxf7+ {[%emt 0:00:00]} Nfg6 {[%emt 0:00:00]} 45. Nxe5 f3 $2 (45... Bxe5 46. Bxe5 Kg5 47. Bxg7 Nh4) 46. Nd3 $2 {[%emt 0:00:00]} (46. Nxf3 a5 47. bxa5) 46... b5 $2 {[%emt 0:00:00]} (46... fxg2+ 47. Kxg2 Kg5 48. Bxg7 Nf4+ 49. Nxf4 Bxf4) 47. axb5 {[%emt 0:00:01]} axb5 {[%emt 0:00:00]} 48. e5 $2 {[%emt 0:00:00]} (48. gxf3 $18 Kg5 49. Be8) 48... Kg4 {[%emt 0:00:00]} (48... fxg2+ $11 {and Black is okay.} 49. Kxg2 Kg5) 49. g3 $2 {[%emt 0:00:01][%mdl 32768] Weighted Error Value: White=0.91/Black=0.75. Loss on time!?} (49. Be6+ $18 Kh4 50. gxf3) 1-0

[Event "German-ch Blitz Women 2022"]
[Site "Magdeburg"]
[Date "2022.08.13"]
[Round "10.11"]
[White "Stangl, Anita"]
[Black "Leveikina, Jevgenija"]
[Result "0-1"]
[ECO "B12"]
[WhiteElo "2023"]
[BlackElo "2061"]
[Annotator "NA RC"]
[PlyCount "110"]
[EventDate "2022.08.10"]
[EventType "tourn"]
[EventCountry "GER"]
[SourceTitle "playchess.com"]
[Source "ChessBase"]
[SourceQuality "1"]
[TimeControl "180+2"]

1. e4 {[%emt 0:00:00]} c6 {[%emt 0:00:00]} 2. d4 {[%emt 0:00:01]} d5 {[%emt 0:00:01]} 3. e5 {[%emt 0:00:01]} Bf5 {[%emt 0:00:01]} 4. g4 {[%emt 0:00:00]} Bd7 {[%emt 0:00:00]} 5. h3 {[%emt 0:00:02]} e6 {[%emt 0:00:01]} 6. c3 {[%emt 0:00:00]} h5 {[%emt 0:00:02]} 7. g5 {[%emt 0:00:03]} g6 {[%emt 0:00:02]} 8. h4 {[%emt 0:00:03]} c5 {[%emt 0:00:02]} 9. Nf3 {[%emt 0:00:07]} Nc6 {[%emt 0:00:01]} 10. Be3 {[%emt 0:00:06]} Nge7 {[%emt 0:00:06]} 11. dxc5 {[%emt 0:00:06]} Nf5 {[%emt 0:00:01]} 12. Bd4 {[%emt 0:00:01]} Bg7 {[%emt 0:00:19]} 13. b4 {[%emt 0:00:11]} Qc7 {[%emt 0:00:03]} 14. Qe2 {[%emt 0:00:02]} a6 {[%emt 0:00:20]} 15. a3 {[%emt 0:00:03]} O-O {[%emt 0:00:16]} 16. Nbd2 {[%emt 0:00:06]} Nce7 {[%emt 0:00:09]} 17. Bh3 {[%emt 0:00:10]} Bb5 {[%emt 0:00:02]} 18. Qd1 {[%emt 0:00:16]} Bd3 {[%emt 0:00:04]} 19. Rc1 {[%emt 0:00:13]} Nc6 {[%emt 0:00:03]} 20. Bxf5 {[%emt 0:00:12]} Bxf5 {[%emt 0:00:07]} 21. Qe2 {[%emt 0:00:05]} Bg4 {[%emt 0:00:15]} 22. Qe3 {[%emt 0:00:01]} Ne7 {[%emt 0:00:03]} 23. Nh2 {[%emt 0:00:12]} Bf5 {[%emt 0:00:07]} 24. f4 {[%emt 0:00:05]} Kh7 {[%emt 0:00:18]} 25. Rg1 {[%emt 0:00:04]} Rac8 {[%emt 0:00:29]} 26. Qe2 {[%emt 0:00:02]} Nc6 {[%emt 0:00:09]} 27. Bf2 {[%emt 0:00:02]} Rcd8 {[%emt 0:00:04]} 28. Ndf3 {[%emt 0:00:03]} Be4 {[%emt 0:00:12]} 29. Nd4 {[%emt 0:00:05]} Ne7 {[%emt 0:00:04]} 30. Nhf3 {[%emt 0:00:04]} Qd7 {[%emt 0:00:16]} 31. Nd2 {[%emt 0:00:02]} Bf5 {[%emt 0:00:02]} 32. Qd1 {[%emt 0:00:05]} Kg8 {[%emt 0:00:06]} 33. Qb3 {[%emt 0:00:02]} Rc8 {[%emt 0:00:01]} 34. a4 {[%emt 0:00:01]} Bg4 {[%emt 0:00:05]} 35. Nf1 {[%emt 0:00:13]} Rfd8 {[%emt 0:00:01]} 36. Ne3 {[%emt 0:00:01]} Bh3 {[%emt 0:00:07]} 37. Rg3 {[%emt 0:00:02]} Bf5 {[%emt 0:00:02]} 38. Nexf5 {[%emt 0:00:01]} exf5 {[%emt 0:00:05]} 39. Rd1 {[%emt 0:00:03]} Re8 {[%emt 0:00:05]} 40. Rgd3 {[%emt 0:00:03]} Rcd8 {[%emt 0:00:01]} 41. Kf1 {[%emt 0:00:02]} Nc6 {[%emt 0:00:01]} 42. Nf3 {[%emt 0:00:08]} Qe6 {[%emt 0:00:03]} 43. Rxd5 {[%emt 0:00:04]} Rxd5 {[%emt 0:00:04]} 44. Qxd5 {[%emt 0:00:01]} Qe7 {[%emt 0:00:01]} 45. b5 {[%emt 0:00:13]} Rd8 {[%emt 0:00:01]} 46. Qb3 {[%emt 0:00:01]} Na5 {[%emt 0:00:04]} 47. Qc2 {[%emt 0:00:02]} Nc4 {[%emt 0:00:02]} 48. Qb3 {[%emt 0:00:20]} Rxd1+ {[%emt 0:00:03]} 49. Qxd1 {[%emt 0:00:02]} axb5 {[%emt 0:00:01]} 50. axb5 {[%emt 0:00:01]} Qe8 {[%emt 0:00:01]} 51. b6 {[%emt 0:00:09]} Qb5 {[%emt 0:00:02]} 52. Qd4 {[%emt 0:00:06]} Ne3+ {[%emt 0:00:06]} 53. Kg1 {[%emt 0:00:01]} Qf1+ {[%emt 0:00:01]} 54. Kh2 {[%emt 0:00:01]} Qxf2+ {[%emt 0:00:02]} 55. Kh1 {[%emt 0:00:01]} Qg2# {[%emt 0:00:00]} 0-1